[Event "28th CRO-chT 1A-Men 2019"]
[Site "Mali Losinj"]
[Date "2019.10.05"]
[Round "8.23"]
[White "Filipovic, Marko"]
[Black "Bobanac, Miro"]
[Result "1-0"]
[ECO "E06"]
[WhiteElo "2349"]
[BlackElo "2257"]
[Annotator "ChessBase"]
[PlyCount "107"]
[EventDate "2019.09.28"]
[EventType "team-tourn"]
[EventCountry "CRO"]
[SourceTitle "playchess.com"]
[Source "ChessBase"]
[SourceQuality "1"]
[TimeControl "40/5400+30:1800+30"]

1. d4 {[%emt 0:00:30]} Nf6 {[%emt 0:00:30]} 2. Nf3 {[%emt 0:00:00]} e6 {[%emt 0:01:30]} 3. c4 {[%emt 0:00:00]} d5 {[%emt 0:00:30]} 4. g3 {[%emt 0:01:30]} Be7 {[%emt 0:02:30]} 5. Bg2 {[%emt 0:01:30]} O-O {[%emt 0:00:30]} 6. O-O {[%emt 0:00:00]} c6 {[%emt 0:00:30]} 7. Qc2 {[%emt 0:06:00]} b6 {[%emt 0:02:30]} 8. Bf4 {[%emt 0:06:30]} Bb7 {[%emt 0:02:30]} 9. Rd1 {[%emt 0:12:30]} Na6 {[%emt 0:05:30]} 10. Ne5 {[%emt 0:09:30]} Rc8 {[%emt 0:07:30]} 11. Nc3 {[%emt 0:02:30]} Nh5 {[%emt 0:08:30]} 12. Be3 {[%emt 0:12:30]} f6 {[%emt 0:06:30]} 13. Nf3 {[%emt 0:01:30]} f5 {[%emt 0:07:30]} 14. a3 {[%emt 0:04:30]} f4 {[%emt 0:05:30]} 15. Bd2 {[%emt 0:03:30]} Bd6 {[%emt 0:02:30]} 16. e4 {[%emt 0:15:30]} g6 {[%emt 0:07:30]} 17. e5 {[%emt 0:11:32]} Be7 {[%emt 0:01:30]} 18. cxd5 {[%emt 0:02:44]} cxd5 {[%emt 0:00:30]} 19. g4 {[%emt 0:01:36]} Ng7 {[%emt 0:00:00]} 20. Qc1 {[%emt 0:00:21]} g5 {[%emt 0:01:00]} 21. h4 {[%emt 0:01:27]} h5 {[%emt 0:02:30]} 22. Bh3 {[%emt 0:00:45]} hxg4 {[%emt 0:01:30]} 23. Bxg4 {[%emt 0:00:04]} gxh4 {[%emt 0:01:30]} 24. Bxf4 {[%emt 0:00:59]} Qe8 {[%emt 0:05:30]} 25. Kh2 {[%emt 0:01:15]} Qf7 {[%emt 0:00:00]} 26. Bh6 {[%emt 0:00:39]} Kh8 {[%emt 0:01:00]} 27. Rg1 {[%emt 0:00:41]} Rg8 {[%emt 0:00:30]} 28. Ng5 {[%emt 0:01:48]} Bxg5 {[%emt 0:11:51]} 29. Bxg5 {[%emt 0:00:06]} Nf5 {[%emt 0:02:26]} 30. Bf6+ {[%emt 0:00:11]} Kh7 {[%emt 0:00:16]} 31. Qf4 {[%emt 0:00:19]} Nh6 {[%emt 0:03:29]} 32. Be2 {[%emt 0:00:11]} Nf5 {[%emt 0:00:35]} 33. Bd3 {[%emt 0:00:26]} Qh5 {[%emt 0:00:29]} 34. Qxh4 {[%emt 0:01:39]} Qxh4+ {[%emt 0:00:27]} 35. Bxh4 {[%emt 0:00:05]} Nc7 {[%emt 0:00:37]} 36. Bf6 {[%emt 0:01:23]} Kh6 {[%emt 0:00:33]} 37. Ne2 {[%emt 0:00:44]} Ba6 {[%emt 0:00:13]} 38. Bxf5 {[%emt 0:00:40]} Bxe2 {[%emt 0:01:43]} 39. Bh3 {[%emt 0:00:25]} Rxg1 {[%emt 0:03:27]} 40. Rxg1 {[%emt 0:00:00]} Re8 {[%emt 0:00:00]} 41. a4 {[%emt 0:04:30]} Na6 {[%emt 0:06:54]} 42. Rg7 {[%emt 0:03:30]} Nb4 {[%emt 0:00:00]} 43. Rxa7 {[%emt 0:03:30]} Nc6 {[%emt 0:00:00]} 44. Rb7 {[%emt 0:00:30]} Nxd4 {[%emt 0:00:30]} 45. f4 {[%emt 0:05:41]} Ra8 {[%emt 0:07:30]} 46. Rxb6 {[%emt 0:02:04]} Rxa4 {[%emt 0:01:30]} 47. Be7 {[%emt 0:02:07]} Ra6 {[%emt 0:00:30]} 48. Rb8 {[%emt 0:05:59]} Kg6 {[%emt 0:02:30]} 49. Bc5 {[%emt 0:01:26]} Nf5 {[%emt 0:00:30]} 50. b4 {[%emt 0:00:48]} Ra2 {[%emt 0:00:30]} 51. Rg8+ {[%emt 0:00:26]} Kf7 {[%emt 0:03:24]} 52. Rg2 {[%emt 0:01:10]} Rc2 {[%emt 0:05:13]} 53. Bg4 {[%emt 0:01:13]} Bd3 {[%emt 0:00:44]} 54. Bh5# {[%emt 0:00:05]} 1-0

[Event "28th CRO-chT 1A-Men 2019"]
[Site "Mali Losinj"]
[Date "2019.10.05"]
[Round "8.24"]
[White "Brulic, Denis"]
[Black "Drmic, Tomislav"]
[Result "1/2-1/2"]
[ECO "D12"]
[WhiteElo "2230"]
[BlackElo "2224"]
[Annotator "ChessBase"]
[PlyCount "45"]
[EventDate "2019.09.28"]
[EventType "team-tourn"]
[EventCountry "CRO"]
[SourceTitle "playchess.com"]
[Source "ChessBase"]
[SourceQuality "1"]
[TimeControl "40/5400+30:1800+30"]

1. Nf3 {[%emt 0:00:30]} d5 {[%emt 0:00:30]} 2. e3 {[%emt 0:00:00]} Bf5 {[%emt 0:02:30]} 3. c4 {[%emt 0:02:00]} e6 {[%emt 0:02:30]} 4. Nc3 {[%emt 0:02:30]} c6 {[%emt 0:05:30]} 5. d4 {[%emt 0:00:30]} Nf6 {[%emt 0:01:30]} 6. Bd3 {[%emt 0:00:30]} dxc4 {[%emt 0:06:30]} 7. Bxc4 {[%emt 0:00:30]} Be7 {[%emt 0:04:30]} 8. O-O {[%emt 0:03:30]} O-O {[%emt 0:00:30]} 9. Re1 {[%emt 0:02:30]} Nbd7 {[%emt 0:08:30]} 10. e4 {[%emt 0:03:30]} Bg4 {[%emt 0:00:30]} 11. Be2 {[%emt 0:04:30]} c5 {[%emt 0:07:30]} 12. Be3 {[%emt 0:04:30]} cxd4 {[%emt 0:04:30]} 13. Nxd4 {[%emt 0:02:30]} Bxe2 {[%emt 0:00:00]} 14. Qxe2 {[%emt 0:00:30]} Bb4 {[%emt 0:02:00]} 15. f3 {[%emt 0:14:30]} Rc8 {[%emt 0:04:30]} 16. Rec1 {[%emt 0:09:30]} a6 {[%emt 0:10:30]} 17. Nd1 {[%emt 0:02:30]} Qe7 {[%emt 0:07:30]} 18. Nf2 {[%emt 0:02:30]} Rfd8 {[%emt 0:02:30]} 19. Rxc8 {[%emt 0:06:30]} Rxc8 {[%emt 0:00:30]} 20. Rc1 {[%emt 0:00:00]} Rxc1+ {[%emt 0:01:30]} 21. Bxc1 {[%emt 0:00:00]} Bc5 {[%emt 0:00:30]} 22. Be3 {[%emt 0:00:30]} Qd6 {[%emt 0:00:30]} 23. Nb3 {[%emt 0:04:30]} 1/2-1/2

[Event "28th CRO-chT 1A-Men 2019"]
[Site "Mali Losinj"]
[Date "2019.10.05"]
[Round "8.25"]
[White "Grachev, Boris"]
[Black "Ponkratov, Pavel"]
[Result "1/2-1/2"]
[ECO "A17"]
[WhiteElo "2621"]
[BlackElo "2621"]
[Annotator "ChessBase"]
[PlyCount "83"]
[EventDate "2019.09.28"]
[EventType "team-tourn"]
[EventCountry "CRO"]
[SourceTitle "playchess.com"]
[Source "ChessBase"]
[SourceQuality "1"]
[TimeControl "40/5400+30:1800+30"]

1. Nf3 {[%emt 0:00:30]} c5 {[%emt 0:00:30]} 2. c4 {[%emt 0:00:00]} Nf6 {[%emt 0:00:30]} 3. Nc3 {[%emt 0:00:00]} e6 {[%emt 0:00:30]} 4. e3 {[%emt 0:02:30]} d5 {[%emt 0:00:30]} 5. cxd5 {[%emt 0:01:30]} Nxd5 {[%emt 0:00:00]} 6. Nxd5 {[%emt 0:00:30]} Qxd5 {[%emt 0:02:00]} 7. b3 {[%emt 0:02:30]} Be7 {[%emt 0:02:30]} 8. Bb2 {[%emt 0:05:30]} Nc6 {[%emt 0:03:30]} 9. Bxg7 {[%emt 0:02:30]} Rg8 {[%emt 0:00:00]} 10. Bc3 {[%emt 0:00:30]} e5 {[%emt 0:03:00]} 11. Bc4 {[%emt 0:04:30]} Qd6 {[%emt 0:02:30]} 12. Qc2 {[%emt 0:18:30]} Rxg2 {[%emt 0:04:30]} 13. O-O-O {[%emt 0:00:00]} Rg6 {[%emt 0:29:30]} 14. Bb5 {[%emt 0:05:00]} Bf6 {[%emt 0:06:30]} 15. Qe4 {[%emt 0:05:30]} Bd7 {[%emt 0:01:30]} 16. Nxe5 {[%emt 0:09:30]} Bxe5 {[%emt 0:01:30]} 17. f4 {[%emt 0:02:30]} f5 {[%emt 0:01:30]} 18. fxe5 {[%emt 0:00:30]} fxe4 {[%emt 0:00:30]} 19. exd6 {[%emt 0:00:00]} Rxd6 {[%emt 0:00:30]} 20. Rhg1 {[%emt 0:02:00]} O-O-O {[%emt 0:00:30]} 21. Rg5 {[%emt 0:03:30]} b6 {[%emt 0:03:30]} 22. Ba6+ {[%emt 0:02:30]} Kc7 {[%emt 0:01:30]} 23. Rf1 {[%emt 0:01:30]} Bc8 {[%emt 0:03:30]} 24. Bc4 {[%emt 0:03:30]} Rh6 {[%emt 0:03:30]} 25. Bd5 {[%emt 0:09:44]} Rxh2 {[%emt 0:01:30]} 26. Bxe4 {[%emt 0:00:07]} Rh4 {[%emt 0:00:30]} 27. Bd5 {[%emt 0:04:39]} Rh6 {[%emt 0:00:30]} 28. Rf7+ {[%emt 0:05:43]} Rd7 {[%emt 0:00:30]} 29. Rf8 {[%emt 0:00:07]} Ba6 {[%emt 0:02:30]} 30. Bf3 {[%emt 0:04:45]} Bd3 {[%emt 0:04:30]} 31. Kb2 {[%emt 0:01:39]} Rg6 {[%emt 0:03:22]} 32. Rh5 {[%emt 0:00:27]} Rg1 {[%emt 0:06:05]} 33. a3 {[%emt 0:00:32]} Bg6 {[%emt 0:00:50]} 34. Rd5 {[%emt 0:00:55]} Rxd5 {[%emt 0:04:42]} 35. Bxd5 {[%emt 0:00:33]} Ne7 {[%emt 0:00:30]} 36. Bc4 {[%emt 0:00:35]} Nc6 {[%emt 0:01:19]} 37. Rf6 {[%emt 0:00:53]} Rg5 {[%emt 0:00:55]} 38. Rf8 {[%emt 0:01:56]} Ne5 {[%emt 0:00:28]} 39. Ra8 {[%emt 0:00:39]} Nxc4+ {[%emt 0:01:16]} 40. bxc4 {[%emt 0:00:00]} Kb7 {[%emt 0:00:00]} 41. Rg8 {[%emt 0:01:16]} Rf5 {[%emt 0:04:03]} 42. Rg7+ {[%emt 0:01:30]} 1/2-1/2

[Event "28th CRO-chT 1A-Men 2019"]
[Site "Mali Losinj"]
[Date "2019.10.05"]
[Round "8.26"]
[White "Martinovic, Sasa"]
[Black "Bosiocic, Marin"]
[Result "1/2-1/2"]
[ECO "D41"]
[WhiteElo "2539"]
[BlackElo "2619"]
[Annotator "ChessBase"]
[PlyCount "51"]
[EventDate "2019.09.28"]
[EventType "team-tourn"]
[EventCountry "CRO"]
[SourceTitle "playchess.com"]
[Source "ChessBase"]
[SourceQuality "1"]
[TimeControl "40/5400+30:1800+30"]

1. d4 {[%emt 0:00:30]} Nf6 {[%emt 0:00:30]} 2. c4 {[%emt 0:00:00]} e6 {[%emt 0:00:00]} 3. Nf3 {[%emt 0:00:00]} d5 {[%emt 0:00:00]} 4. Nc3 {[%emt 0:00:00]} c5 {[%emt 0:00:00]} 5. cxd5 {[%emt 0:00:00]} Nxd5 {[%emt 0:00:00]} 6. e4 {[%emt 0:00:00]} Nxc3 {[%emt 0:00:00]} 7. bxc3 {[%emt 0:00:00]} cxd4 {[%emt 0:00:00]} 8. cxd4 {[%emt 0:00:00]} Bb4+ {[%emt 0:00:00]} 9. Bd2 {[%emt 0:00:00]} Bxd2+ {[%emt 0:00:00]} 10. Qxd2 {[%emt 0:00:00]} O-O {[%emt 0:00:00]} 11. Bc4 {[%emt 0:00:00]} Nd7 {[%emt 0:00:00]} 12. O-O {[%emt 0:00:00]} b6 {[%emt 0:00:00]} 13. Rfe1 {[%emt 0:00:00]} Bb7 {[%emt 0:00:00]} 14. a4 {[%emt 0:00:00]} Rc8 {[%emt 0:00:00]} 15. Bd3 {[%emt 0:00:00]} a5 {[%emt 0:00:00]} 16. Bb5 {[%emt 0:00:30]} Nf6 {[%emt 0:00:00]} 17. Bd3 {[%emt 0:00:30]} Nd7 {[%emt 0:00:00]} 18. h3 {[%emt 0:01:30]} h6 {[%emt 0:00:00]} 19. Bb5 {[%emt 0:00:30]} Nf6 {[%emt 0:00:00]} 20. Qd3 {[%emt 0:00:30]} Rc7 {[%emt 0:00:00]} 21. Ne5 {[%emt 0:00:30]} Qc8 {[%emt 0:00:00]} 22. f3 {[%emt 0:00:30]} Rc3 {[%emt 0:00:00]} 23. Qd2 {[%emt 0:00:30]} Rc2 {[%emt 0:00:00]} 24. Qe3 {[%emt 0:03:30]} Rc3 {[%emt 0:00:30]} 25. Qd2 {[%emt 0:00:30]} Rc2 {[%emt 0:00:30]} 26. Qe3 {[%emt 0:00:30]} 1/2-1/2

[Event "28th CRO-chT 1A-Men 2019"]
[Site "Mali Losinj"]
[Date "2019.10.05"]
[Round "8.27"]
[White "Popov, Ivan"]
[Black "Cvitan, Ognjen"]
[Result "1-0"]
[ECO "B76"]
[WhiteElo "2611"]
[BlackElo "2490"]
[Annotator "ChessBase"]
[PlyCount "83"]
[EventDate "2019.09.28"]
[EventType "team-tourn"]
[EventCountry "CRO"]
[SourceTitle "playchess.com"]
[Source "ChessBase"]
[SourceQuality "1"]
[TimeControl "40/5400+30:1800+30"]

1. e4 {[%emt 0:00:30]} c5 {[%emt 0:03:30]} 2. Nf3 {[%emt 0:00:00]} d6 {[%emt 0:00:30]} 3. d4 {[%emt 0:00:00]} cxd4 {[%emt 0:00:30]} 4. Nxd4 {[%emt 0:00:30]} Nf6 {[%emt 0:00:30]} 5. Nc3 {[%emt 0:00:00]} g6 {[%emt 0:00:30]} 6. Be3 {[%emt 0:02:00]} Bg7 {[%emt 0:01:30]} 7. f3 {[%emt 0:00:00]} Nc6 {[%emt 0:00:30]} 8. Qd2 {[%emt 0:00:00]} O-O {[%emt 0:00:30]} 9. O-O-O {[%emt 0:01:30]} d5 {[%emt 0:01:30]} 10. exd5 {[%emt 0:00:30]} Nxd5 {[%emt 0:02:30]} 11. Nxc6 {[%emt 0:00:30]} bxc6 {[%emt 0:00:30]} 12. Bd4 {[%emt 0:00:30]} Bxd4 {[%emt 0:03:30]} 13. Qxd4 {[%emt 0:00:00]} Qb6 {[%emt 0:02:30]} 14. Na4 {[%emt 0:01:00]} Qc7 {[%emt 0:03:30]} 15. Bc4 {[%emt 0:02:30]} Rd8 {[%emt 0:03:30]} 16. Nc5 {[%emt 0:03:30]} Bf5 {[%emt 0:02:30]} 17. Bb3 {[%emt 0:00:30]} Nf4 {[%emt 0:03:30]} 18. Qc4 {[%emt 0:01:30]} Be6 {[%emt 0:09:30]} 19. Nxe6 {[%emt 0:00:30]} Rxd1+ {[%emt 0:08:30]} 20. Rxd1 {[%emt 0:00:30]} Nxe6 {[%emt 0:00:00]} 21. g3 {[%emt 0:09:30]} Rd8 {[%emt 0:03:00]} 22. Rxd8+ {[%emt 0:04:30]} Nxd8 {[%emt 0:00:30]} 23. Qc5 {[%emt 0:00:30]} h5 {[%emt 0:07:30]} 24. a4 {[%emt 0:03:30]} e6 {[%emt 0:06:30]} 25. c3 {[%emt 0:10:30]} Qb6 {[%emt 0:17:14]} 26. Qxb6 {[%emt 0:14:30]} axb6 {[%emt 0:00:11]} 27. Bc2 {[%emt 0:02:30]} Kf8 {[%emt 0:01:32]} 28. b4 {[%emt 0:00:30]} Ke7 {[%emt 0:00:10]} 29. a5 {[%emt 0:07:30]} bxa5 {[%emt 0:01:37]} 30. bxa5 {[%emt 0:00:30]} Kd6 {[%emt 0:00:17]} 31. Kd2 {[%emt 0:00:00]} Kc7 {[%emt 0:03:30]} 32. a6 {[%emt 0:11:00]} Kb6 {[%emt 0:01:12]} 33. Bd3 {[%emt 0:00:30]} c5 {[%emt 0:08:41]} 34. Ke3 {[%emt 0:03:30]} f5 {[%emt 0:04:19]} 35. h4 {[%emt 0:05:18]} Nf7 {[%emt 0:01:06]} 36. Bc4 {[%emt 0:00:32]} Nd6 {[%emt 0:00:30]} 37. Bxe6 {[%emt 0:00:11]} Kxa6 {[%emt 0:00:22]} 38. Kf4 {[%emt 0:00:01]} Kb6 {[%emt 0:00:14]} 39. Kg5 {[%emt 0:00:24]} Nb5 {[%emt 0:00:02]} 40. Kxg6 {[%emt 0:00:00]} Nxc3 {[%emt 0:00:00]} 41. Bxf5 {[%emt 0:05:04]} Ne2 {[%emt 0:00:33]} 42. g4 {[%emt 0:00:30]} 1-0

[Event "28th CRO-chT 1A-Men 2019"]
[Site "Mali Losinj"]
[Date "2019.10.05"]
[Round "8.28"]
[White "Kurajica, Bojan"]
[Black "Tica, Sven"]
[Result "1-0"]
[ECO "E17"]
[WhiteElo "2494"]
[BlackElo "2418"]
[Annotator "ChessBase"]
[PlyCount "123"]
[EventDate "2019.09.28"]
[EventType "team-tourn"]
[EventCountry "CRO"]
[SourceTitle "playchess.com"]
[Source "ChessBase"]
[SourceQuality "1"]
[TimeControl "40/5400+30:1800+30"]

1. Nf3 {[%emt 0:02:30]} d5 {[%emt 0:00:30]} 2. c4 {[%emt 0:00:30]} e6 {[%emt 0:00:00]} 3. g3 {[%emt 0:00:00]} Nf6 {[%emt 0:00:00]} 4. Bg2 {[%emt 0:00:00]} Be7 {[%emt 0:00:00]} 5. O-O {[%emt 0:00:30]} O-O {[%emt 0:00:00]} 6. b3 {[%emt 0:00:30]} b6 {[%emt 0:01:30]} 7. cxd5 {[%emt 0:01:30]} exd5 {[%emt 0:01:30]} 8. Bb2 {[%emt 0:00:30]} Bb7 {[%emt 0:00:30]} 9. d4 {[%emt 0:00:30]} Nbd7 {[%emt 0:02:30]} 10. Nc3 {[%emt 0:00:30]} a6 {[%emt 0:03:30]} 11. Rc1 {[%emt 0:06:30]} Bd6 {[%emt 0:03:30]} 12. Nd2 {[%emt 0:05:30]} Re8 {[%emt 0:06:30]} 13. Nc4 {[%emt 0:06:30]} Bb4 {[%emt 0:00:30]} 14. Ne3 {[%emt 0:03:30]} c6 {[%emt 0:12:30]} 15. a3 {[%emt 0:01:30]} Bf8 {[%emt 0:00:30]} 16. Na4 {[%emt 0:06:30]} a5 {[%emt 0:07:30]} 17. Rc2 {[%emt 0:02:30]} g6 {[%emt 0:06:30]} 18. Bh3 {[%emt 0:01:30]} Bd6 {[%emt 0:12:30]} 19. Ng2 {[%emt 0:01:30]} Qe7 {[%emt 0:02:30]} 20. Qc1 {[%emt 0:03:30]} Ra6 {[%emt 0:06:30]} 21. Nf4 {[%emt 0:01:30]} Ne4 {[%emt 0:04:30]} 22. Nd3 {[%emt 0:01:30]} f5 {[%emt 0:02:30]} 23. Bg2 {[%emt 0:00:30]} Nef6 {[%emt 0:01:30]} 24. Re1 {[%emt 0:04:30]} Ng4 {[%emt 0:03:30]} 25. Rxc6 {[%emt 0:06:30]} Bxc6 {[%emt 0:01:30]} 26. Qxc6 {[%emt 0:00:00]} Ngf6 {[%emt 0:01:24]} 27. Nc3 {[%emt 0:03:00]} Nb8 {[%emt 0:06:42]} 28. Qb5 {[%emt 0:01:30]} Qd7 {[%emt 0:00:04]} 29. Qxd7 {[%emt 0:03:30]} Nbxd7 {[%emt 0:00:05]} 30. Nxd5 {[%emt 0:00:30]} Ra7 {[%emt 0:02:10]} 31. Nc3 {[%emt 0:00:30]} Nb8 {[%emt 0:02:12]} 32. Nb5 {[%emt 0:02:30]} Rd7 {[%emt 0:00:04]} 33. f3 {[%emt 0:09:30]} Bf8 {[%emt 0:07:26]} 34. Ne5 {[%emt 0:06:02]} Rdd8 {[%emt 0:00:32]} 35. e4 {[%emt 0:04:15]} fxe4 {[%emt 0:00:03]} 36. fxe4 {[%emt 0:00:11]} Rxe5 {[%emt 0:02:08]} 37. dxe5 {[%emt 0:00:06]} Bc5+ {[%emt 0:00:02]} 38. Kh1 {[%emt 0:02:20]} Ng4 {[%emt 0:00:07]} 39. h3 {[%emt 0:00:43]} Ne3 {[%emt 0:01:07]} 40. Bf3 {[%emt 0:00:00]} Nc6 {[%emt 0:00:00]} 41. Be2 {[%emt 0:12:23]} Nd4 {[%emt 0:14:21]} 42. Bxd4 {[%emt 0:12:30]} Bxd4 {[%emt 0:00:12]} 43. Nxd4 {[%emt 0:01:30]} Rxd4 {[%emt 0:00:21]} 44. Ba6 {[%emt 0:01:11]} Nc2 {[%emt 0:02:29]} 45. Rf1 {[%emt 0:04:44]} Nxa3 {[%emt 0:09:11]} 46. Bb7 {[%emt 0:01:26]} Rd7 {[%emt 0:00:05]} 47. Bd5+ {[%emt 0:01:00]} Kg7 {[%emt 0:00:04]} 48. Rf6 {[%emt 0:00:33]} b5 {[%emt 0:02:11]} 49. Ra6 {[%emt 0:00:43]} a4 {[%emt 0:01:50]} 50. bxa4 {[%emt 0:00:08]} bxa4 {[%emt 0:00:03]} 51. Rxa4 {[%emt 0:00:23]} Nb5 {[%emt 0:00:15]} 52. Bc6 {[%emt 0:04:56]} Rd1+ {[%emt 0:00:05]} 53. Kg2 {[%emt 0:00:06]} Nd4 {[%emt 0:00:15]} 54. Ra7+ {[%emt 0:01:25]} Kh6 {[%emt 0:00:45]} 55. Rd7 {[%emt 0:00:57]} Rd2+ {[%emt 0:00:10]} 56. Kf1 {[%emt 0:00:11]} Rc2 {[%emt 0:00:35]} 57. Rxd4 {[%emt 0:00:18]} Rxc6 {[%emt 0:00:04]} 58. Kf2 {[%emt 0:00:18]} Kg5 {[%emt 0:00:45]} 59. Rd7 {[%emt 0:01:00]} h5 {[%emt 0:00:29]} 60. Ke3 {[%emt 0:01:04]} Rc3+ {[%emt 0:00:38]} 61. Kd4 {[%emt 0:01:22]} Rxg3 {[%emt 0:00:09]} 62. h4+ {[%emt 0:00:36]} 1-0

[Event "28th CRO-chT 1A-Men 2019"]
[Site "Mali Losinj"]
[Date "2019.10.05"]
[Round "8.29"]
[White "Golubovic, Boris"]
[Black "Rogic, Davor"]
[Result "1/2-1/2"]
[ECO "D00"]
[WhiteElo "2401"]
[BlackElo "2492"]
[Annotator "ChessBase"]
[PlyCount "45"]
[EventDate "2019.09.28"]
[EventType "team-tourn"]
[EventCountry "CRO"]
[SourceTitle "playchess.com"]
[Source "ChessBase"]
[SourceQuality "1"]
[TimeControl "40/5400+30:1800+30"]

1. d4 {[%emt 0:00:30]} Nf6 {[%emt 0:05:30]} 2. Nc3 {[%emt 0:03:30]} d5 {[%emt 0:04:30]} 3. Bf4 {[%emt 0:01:30]} a6 {[%emt 0:02:30]} 4. e3 {[%emt 0:04:30]} e6 {[%emt 0:10:30]} 5. Bd3 {[%emt 0:10:30]} c5 {[%emt 0:03:30]} 6. dxc5 {[%emt 0:08:30]} Bxc5 {[%emt 0:02:30]} 7. Nf3 {[%emt 0:00:30]} O-O {[%emt 0:04:30]} 8. O-O {[%emt 0:00:30]} Nc6 {[%emt 0:01:30]} 9. a3 {[%emt 0:11:30]} b5 {[%emt 0:07:30]} 10. e4 {[%emt 0:10:30]} b4 {[%emt 0:18:30]} 11. axb4 {[%emt 0:16:30]} Nxb4 {[%emt 0:00:30]} 12. exd5 {[%emt 0:02:30]} Nfxd5 {[%emt 0:05:30]} 13. Be4 {[%emt 0:07:23]} Bb7 {[%emt 0:01:30]} 14. Nxd5 {[%emt 0:01:06]} Bxd5 {[%emt 0:01:30]} 15. Bxd5 {[%emt 0:06:05]} Nxd5 {[%emt 0:00:00]} 16. Be5 {[%emt 0:00:06]} Qb6 {[%emt 0:01:00]} 17. c4 {[%emt 0:02:25]} f6 {[%emt 0:05:30]} 18. cxd5 {[%emt 0:03:58]} fxe5 {[%emt 0:00:30]} 19. dxe6 {[%emt 0:00:54]} Qxe6 {[%emt 0:02:30]} 20. Ng5 {[%emt 0:02:32]} Qe7 {[%emt 0:04:15]} 21. Qd5+ {[%emt 0:01:22]} Kh8 {[%emt 0:00:06]} 22. Ne6 {[%emt 0:00:12]} Qf7 {[%emt 0:01:49]} 23. Qxc5 {[%emt 0:00:28]} 1/2-1/2

[Event "28th CRO-chT 1A-Men 2019"]
[Site "Mali Losinj"]
[Date "2019.10.05"]
[Round "8.30"]
[White "Muse, Mladen"]
[Black "Petrov, Jole"]
[Result "1/2-1/2"]
[ECO "D02"]
[WhiteElo "2387"]
[BlackElo "2418"]
[Annotator "ChessBase"]
[PlyCount "41"]
[EventDate "2019.09.28"]
[EventType "team-tourn"]
[EventCountry "CRO"]
[SourceTitle "playchess.com"]
[Source "ChessBase"]
[SourceQuality "1"]
[TimeControl "40/5400+30:1800+30"]

1. Nf3 {[%emt 0:01:30]} d5 {[%emt 0:00:30]} 2. g3 {[%emt 0:00:30]} c6 {[%emt 0:00:30]} 3. Bg2 {[%emt 0:00:30]} Bg4 {[%emt 0:00:00]} 4. d4 {[%emt 0:01:30]} Nf6 {[%emt 0:01:00]} 5. O-O {[%emt 0:00:00]} e6 {[%emt 0:00:30]} 6. Nbd2 {[%emt 0:02:00]} Nbd7 {[%emt 0:01:30]} 7. Re1 {[%emt 0:00:30]} Be7 {[%emt 0:00:00]} 8. e4 {[%emt 0:00:30]} O-O {[%emt 0:00:00]} 9. c3 {[%emt 0:03:30]} Bh5 {[%emt 0:01:30]} 10. h3 {[%emt 0:07:30]} Rc8 {[%emt 0:04:30]} 11. Qb3 {[%emt 0:05:30]} Qb6 {[%emt 0:02:30]} 12. exd5 {[%emt 0:03:30]} cxd5 {[%emt 0:00:30]} 13. Ne5 {[%emt 0:01:30]} Qc7 {[%emt 0:28:30]} 14. Nxd7 {[%emt 0:06:30]} Qxd7 {[%emt 0:05:30]} 15. a4 {[%emt 0:02:30]} Qc7 {[%emt 0:09:30]} 16. Nf3 {[%emt 0:08:30]} Bd6 {[%emt 0:00:30]} 17. Ne5 {[%emt 0:02:30]} Nd7 {[%emt 0:02:30]} 18. Bf4 {[%emt 0:06:30]} Nxe5 {[%emt 0:02:30]} 19. Bxe5 {[%emt 0:02:30]} Rfd8 {[%emt 0:00:30]} 20. a5 {[%emt 0:08:30]} Bg6 {[%emt 0:02:30]} 21. Qb5 {[%emt 0:10:30]} 1/2-1/2

[Event "28th CRO-chT 1A-Men 2019"]
[Site "Mali Losinj"]
[Date "2019.10.06"]
[Round "9.2"]
[White "Dreev, Aleksey"]
[Black "Martinovic, Sasa"]
[Result "1/2-1/2"]
[ECO "D77"]
[WhiteElo "2662"]
[BlackElo "2539"]
[Annotator "ChessBase"]
[PlyCount "27"]
[EventDate "2019.09.28"]
[EventType "team-tourn"]
[EventCountry "CRO"]
[SourceTitle "playchess.com"]
[Source "ChessBase"]
[SourceQuality "1"]
[TimeControl "40/5400+30:1800+30"]

1. d4 {[%emt 0:00:30]} Nf6 {[%emt 0:00:30]} 2. Nf3 {[%emt 0:00:00]} g6 {[%emt 0:00:00]} 3. g3 {[%emt 0:00:00]} Bg7 {[%emt 0:00:00]} 4. Bg2 {[%emt 0:00:30]} d5 {[%emt 0:00:30]} 5. O-O {[%emt 0:01:30]} O-O {[%emt 0:00:00]} 6. c4 {[%emt 0:00:00]} dxc4 {[%emt 0:00:00]} 7. Na3 {[%emt 0:00:00]} c5 {[%emt 0:00:30]} 8. Nxc4 {[%emt 0:03:30]} Be6 {[%emt 0:00:30]} 9. Nce5 {[%emt 0:13:30]} cxd4 {[%emt 0:01:30]} 10. Qxd4 {[%emt 0:02:30]} Qxd4 {[%emt 0:00:30]} 11. Nxd4 {[%emt 0:00:30]} Bd5 {[%emt 0:00:30]} 12. Rd1 {[%emt 0:09:30]} Bxg2 {[%emt 0:07:30]} 13. Kxg2 {[%emt 0:00:00]} Rd8 {[%emt 0:00:30]} 14. Bf4 {[%emt 0:17:00]} 1/2-1/2

[Event "28th CRO-chT 1A-Men 2019"]
[Site "Mali Losinj"]
[Date "2019.10.06"]
[Round "9.3"]
[White "Cvitan, Ognjen"]
[Black "Lalic, Bogdan"]
[Result "1/2-1/2"]
[ECO "D55"]
[WhiteElo "2490"]
[BlackElo "2419"]
[Annotator "ChessBase"]
[PlyCount "42"]
[EventDate "2019.09.28"]
[EventType "team-tourn"]
[EventCountry "CRO"]
[SourceTitle "playchess.com"]
[Source "ChessBase"]
[SourceQuality "1"]
[TimeControl "40/5400+30:1800+30"]

1. d4 {[%emt 0:01:30]} Nf6 {[%emt 0:00:30]} 2. c4 {[%emt 0:00:30]} e6 {[%emt 0:00:00]} 3. Nf3 {[%emt 0:01:30]} d5 {[%emt 0:00:00]} 4. Nc3 {[%emt 0:01:30]} Be7 {[%emt 0:01:30]} 5. Bg5 {[%emt 0:01:30]} h6 {[%emt 0:01:30]} 6. Bxf6 {[%emt 0:05:30]} Bxf6 {[%emt 0:00:00]} 7. e3 {[%emt 0:00:30]} O-O {[%emt 0:02:00]} 8. Rc1 {[%emt 0:01:30]} c6 {[%emt 0:00:30]} 9. Bd3 {[%emt 0:01:30]} Nd7 {[%emt 0:01:30]} 10. O-O {[%emt 0:01:30]} dxc4 {[%emt 0:01:30]} 11. Bxc4 {[%emt 0:00:30]} e5 {[%emt 0:02:30]} 12. h3 {[%emt 0:03:30]} exd4 {[%emt 0:00:30]} 13. exd4 {[%emt 0:00:30]} Nb6 {[%emt 0:00:30]} 14. Bb3 {[%emt 0:00:30]} Bf5 {[%emt 0:03:30]} 15. Re1 {[%emt 0:02:30]} Re8 {[%emt 0:01:30]} 16. Rxe8+ {[%emt 0:06:30]} Qxe8 {[%emt 0:00:30]} 17. Qd2 {[%emt 0:01:30]} Qd7 {[%emt 0:06:30]} 18. Re1 {[%emt 0:05:30]} a5 {[%emt 0:01:30]} 19. a3 {[%emt 0:00:30]} Re8 {[%emt 0:05:30]} 20. Rxe8+ {[%emt 0:02:30]} Qxe8 {[%emt 0:00:30]} 21. Qf4 {[%emt 0:00:00]} Be6 {[%emt 0:01:30]} 1/2-1/2